[Event "15. ročník Dobrovický rapid Tereos TTD a.s."]
[Site "Dobrovice, Czech Republic"]
[Date "2020.02.29"]
[Round "4.11"]
[White "Jerman Richard"]
[Black "Kopecky Jiri"]
[Result "0-1"]
[TimeControl "15m + 3s / tah"]
[WhiteElo "2046"]
[BlackElo "1927"]

1. e4 {[%clk 00:15:05]} {[%emt 00:00:01]} c5 {[%clk 00:15:04]} {[%emt
00:00:02]} 2. Nc3 {[%clk 00:15:07]} {[%emt 00:00:01]} Nc6 {[%clk 00:15:06]} 3.
Nge2 {[%clk 00:15:09]} {[%emt 00:00:02]} Nf6 {[%clk 00:15:03]} {[%emt
00:00:06]} 4. d4 {[%clk 00:15:11]} cxd4 {[%clk 00:15:05]} {[%emt 00:00:01]} 5.
Nxd4 {[%clk 00:15:13]} e5 {[%clk 00:15:06]} 6. Ndb5 {[%clk 00:15:14]} {[%emt
00:00:02]} d6 {[%clk 00:15:08]} {[%emt 00:00:01]} 7. Nd5 {[%clk 00:15:15]}
{[%emt 00:00:02]} Nxd5 {[%clk 00:15:09]} {[%emt 00:00:02]} 8. exd5 {[%clk
00:15:17]} {[%emt 00:00:01]} Nb8 {[%clk 00:15:11]} 9. c4 {[%clk 00:15:07]}
{[%emt 00:00:12]} a6 {[%clk 00:15:13]} {[%emt 00:00:02]} 10. Nc3 {[%clk
00:14:59]} {[%emt 00:00:10]} Be7 {[%clk 00:15:13]} {[%emt 00:00:04]} 11. Bd3
{[%clk 00:14:19]} {[%emt 00:00:43]} O-O {[%clk 00:15:02]} {[%emt 00:00:14]} 12.
Be3 {[%clk 00:14:13]} {[%emt 00:00:09]} f5 {[%clk 00:14:57]} {[%emt 00:00:07]}
13. f3 {[%clk 00:14:12]} {[%emt 00:00:05]} Nd7 {[%clk 00:14:36]} {[%emt
00:00:24]} 14. O-O {[%clk 00:14:12]} {[%emt 00:00:04]} b6 {[%clk 00:14:35]}
{[%emt 00:00:04]} 15. b4 {[%clk 00:14:02]} {[%emt 00:00:12]} Bb7 {[%clk
00:14:07]} {[%emt 00:00:31]} 16. Qd2 {[%clk 00:13:39]} {[%emt 00:00:27]} Rc8
{[%clk 00:13:53]} {[%emt 00:00:16]} 17. Rfc1 {[%clk 00:13:16]} {[%emt
00:00:27]} h6 {[%clk 00:13:15]} {[%emt 00:00:42]} 18. Na4 {[%clk 00:13:07]}
{[%emt 00:00:11]} Bg5 {[%clk 00:12:24]} {[%emt 00:00:53]} 19. Qf2 {[%clk
00:12:08]} {[%emt 00:01:03]} e4 {[%clk 00:09:48]} {[%emt 00:02:40]} 20. Bxg5
{[%clk 00:11:53]} {[%emt 00:00:18]} Qxg5 {[%clk 00:09:22]} {[%emt 00:00:25]} 21.
Be2 {[%clk 00:11:37]} {[%emt 00:00:22]} b5 {[%clk 00:08:54]} {[%emt 00:00:30]}
22. f4 {[%clk 00:10:58]} {[%emt 00:00:43]} Qe7 {[%clk 00:08:01]} {[%emt
00:00:54]} 23. cxb5 {[%clk 00:10:57]} {[%emt 00:00:06]} axb5 {[%clk 00:07:56]}
{[%emt 00:00:07]} 24. Bxb5 {[%clk 00:10:56]} {[%emt 00:00:04]} Bxd5 {[%clk
00:07:38]} {[%emt 00:00:20]} 25. Rxc8 {[%clk 00:10:06]} {[%emt 00:00:55]} Rxc8
{[%clk 00:07:39]} {[%emt 00:00:02]} 26. Bxd7 {[%clk 00:09:53]} {[%emt
00:00:16]} e3 {[%clk 00:07:10]} {[%emt 00:00:32]} 27. Qg3 {[%clk 00:08:49]}
{[%emt 00:01:07]} Rc2 {[%clk 00:05:29]} {[%emt 00:01:42]} 28. Bb5 {[%clk
00:06:59]} {[%emt 00:01:54]} Qe4 {[%clk 00:05:03]} {[%emt 00:00:27]} 29. Bf1
{[%clk 00:06:54]} {[%emt 00:00:11]} e2 {[%clk 00:03:58]} {[%emt 00:01:06]} 30.
Nb6 {[%clk 00:04:29]} {[%emt 00:02:29]} Qd4+ {[%clk 00:03:43]} {[%emt
00:00:17]} 31. Kh1 {[%clk 00:04:17]} {[%emt 00:00:16]} Qxa1 {[%emt 00:00:07]}
0-1

[Event "15. ročník Dobrovický rapid Tereos TTD a.s."]
[Site "Dobrovice, Czech Republic"]
[Date "2020.02.29"]
[Round "4.12"]
[White "Mejzr Jan"]
[Black "Groh Jiri"]
[Result "0-1"]
[TimeControl "15m + 3s / tah"]
[WhiteElo "1843"]
[BlackElo "2031"]

1. e4 {[%clk 00:15:03]} {[%emt 00:00:02]} c5 {[%clk 00:15:05]} {[%emt
00:00:01]} 2. c3 {[%clk 00:14:53]} {[%emt 00:00:13]} Nc6 {[%clk 00:15:02]}
{[%emt 00:00:06]} 3. Nf3 {[%clk 00:14:14]} {[%emt 00:00:43]} Nf6 {[%clk
00:15:01]} {[%emt 00:00:04]} 4. e5 {[%clk 00:13:50]} {[%emt 00:00:27]} Nd5
{[%clk 00:14:52]} {[%emt 00:00:12]} 5. d4 {[%clk 00:13:27]} {[%emt 00:00:26]}
cxd4 {[%clk 00:14:50]} {[%emt 00:00:05]} 6. cxd4 {[%clk 00:13:12]} {[%emt
00:00:18]} d6 {[%clk 00:14:51]} {[%emt 00:00:02]} 7. Bc4 {[%clk 00:12:11]}
{[%emt 00:01:04]} Nb6 {[%clk 00:14:19]} {[%emt 00:00:35]} 8. Bb3 {[%clk
00:12:09]} {[%emt 00:00:05]} dxe5 {[%clk 00:13:46]} {[%emt 00:00:36]} 9. d5
{[%clk 00:11:28]} {[%emt 00:00:45]} e4 {[%clk 00:13:35]} {[%emt 00:00:14]} 10.
dxc6 {[%clk 00:09:31]} {[%emt 00:01:59]} Qxd1+ {[%clk 00:13:11]} {[%emt
00:00:27]} 11. Bxd1 {[%clk 00:09:31]} {[%emt 00:00:04]} exf3 {[%emt 00:00:03]}
12. Bxf3 {[%emt 00:00:04]} Bf5 {[%clk 00:09:52]} {[%emt 00:03:15]} 13. cxb7
{[%clk 00:09:15]} {[%emt 00:00:19]} Rd8 {[%clk 00:09:30]} {[%emt 00:00:25]} 14.
Bf4 {[%clk 00:07:43]} {[%emt 00:01:34]} e5 {[%clk 00:08:11]} {[%emt 00:01:22]}
15. Bxe5 {[%clk 00:07:36]} {[%emt 00:00:11]} Bb4+ {[%clk 00:07:51]} {[%emt
00:00:23]} 16. Nc3 {[%clk 00:07:14]} {[%emt 00:00:25]} Na4 {[%clk 00:06:05]}
{[%emt 00:01:48]} 17. O-O {[%clk 00:06:46]} {[%emt 00:00:32]} Nxb2 {[%clk
00:05:54]} {[%emt 00:00:14]} 18. Bxg7 {[%clk 00:06:15]} {[%emt 00:00:35]} Rg8
{[%clk 00:05:09]} {[%emt 00:00:48]} 19. Bf6 {[%clk 00:04:53]} {[%emt 00:01:24]}
Rb8 {[%clk 00:04:02]} {[%emt 00:01:10]} 20. Be5 {[%clk 00:03:05]} {[%emt
00:01:52]} Kd7 {[%clk 00:03:21]} {[%emt 00:00:44]} 21. Bxb8 {[%clk 00:02:47]}
{[%emt 00:00:20]} Rxb8 {[%clk 00:03:23]} 22. Nd5 {[%clk 00:02:36]} {[%emt
00:00:15]} Bd6 {[%clk 00:02:58]} {[%emt 00:00:27]} 23. Rfe1 {[%clk 00:02:03]}
{[%emt 00:00:36]} Nd3 {[%clk 00:02:46]} {[%emt 00:00:15]} 24. Red1 {[%clk
00:01:37]} {[%emt 00:00:30]} Ne5 {[%clk 00:02:46]} {[%emt 00:00:03]} 25. Ne3
{[%clk 00:00:51]} {[%emt 00:00:49]} Be6 {[%clk 00:02:04]} {[%emt 00:00:45]} 26.
Be4 {[%clk 00:00:50]} {[%emt 00:00:05]} Ke7 {[%clk 00:01:46]} {[%emt 00:00:21]}
27. Rac1 {[%clk 00:00:42]} {[%emt 00:00:10]} f5 {[%clk 00:01:17]} {[%emt
00:00:31]} 28. Nxf5+ {[%clk 00:00:15]} {[%emt 00:00:31]} Bxf5 {[%clk 00:01:18]}
{[%emt 00:00:02]} 29. Bxf5 {[%clk 00:00:16]} {[%emt 00:00:02]} Rxb7 {[%clk
00:01:20]} {[%emt 00:00:01]} 30. f4 {[%clk 00:00:11]} {[%emt 00:00:09]} Nf7
{[%clk 00:01:15]} {[%emt 00:00:07]} 0-1

[Event "15. ročník Dobrovický rapid Tereos TTD a.s."]
[Site "Dobrovice, Czech Republic"]
[Date "2020.02.29"]
[Round "4.13"]
[White "Partl Miloslav"]
[Black "Vavrinec Tomas"]
[Result "0-1"]
[TimeControl "15m + 3s / tah"]
[WhiteElo "1841"]
[BlackElo "2025"]

1. e4 e6 2. Nf3 {[%clk 00:15:03]} {[%emt 00:00:01]} d5 {[%clk 00:15:02]} {[%emt
00:00:03]} 3. exd5 {[%clk 00:15:05]} {[%emt 00:00:02]} exd5 {[%clk 00:15:04]} 4.
d4 {[%clk 00:15:03]} {[%emt 00:00:06]} Bg4 {[%clk 00:15:06]} {[%emt 00:00:01]}
5. h3 {[%clk 00:15:05]} {[%emt 00:00:01]} Bh5 {[%clk 00:15:07]} 6. Be2 {[%clk
00:15:07]} Bd6 {[%clk 00:14:55]} {[%emt 00:00:15]} 7. O-O {[%clk 00:15:08]}
{[%emt 00:00:03]} Nc6 {[%clk 00:14:51]} {[%emt 00:00:07]} 8. Be3 {[%clk
00:15:10]} {[%emt 00:00:01]} Nf6 {[%clk 00:14:24]} {[%emt 00:00:29]} 9. Nbd2
{[%clk 00:15:12]} {[%emt 00:00:01]} O-O {[%emt 00:00:15]} 10. c4 Re8 {[%clk
00:13:59]} {[%emt 00:00:15]} 11. c5 {[%clk 00:15:16]} {[%emt 00:00:02]} Bf8
{[%clk 00:13:47]} {[%emt 00:00:15]} 12. Bg5 {[%clk 00:15:14]} {[%emt 00:00:05]}
Be7 {[%clk 00:13:30]} {[%emt 00:00:19]} 13. Re1 {[%clk 00:15:16]} {[%emt
00:00:02]} Ne4 {[%clk 00:13:02]} {[%emt 00:00:30]} 14. Bxe7 {[%clk 00:15:09]}
{[%emt 00:00:10]} Qxe7 {[%clk 00:12:30]} {[%emt 00:00:34]} 15. Nxe4 {[%clk
00:14:44]} {[%emt 00:00:25]} dxe4 {[%clk 00:12:31]} {[%emt 00:00:06]} 16. Nd2
{[%clk 00:14:44]} {[%emt 00:00:03]} Bxe2 {[%clk 00:11:04]} {[%emt 00:01:30]} 17.
Rxe2 {[%clk 00:14:46]} {[%emt 00:00:01]} Nxd4 {[%clk 00:11:02]} {[%emt
00:00:04]} 18. Rxe4 {[%clk 00:14:47]} {[%emt 00:00:02]} Qxc5 {[%clk 00:09:54]}
{[%emt 00:01:11]} 19. Rc1 {[%clk 00:14:49]} {[%emt 00:00:01]} Qd5 {[%clk
00:07:54]} {[%emt 00:02:02]} 20. Rxe8+ {[%clk 00:14:38]} {[%emt 00:00:15]} Rxe8
{[%clk 00:07:56]} 21. Rxc7 {[%clk 00:14:20]} {[%emt 00:00:22]} Ne6 {[%clk
00:06:58]} {[%emt 00:01:00]} 22. Rc2 {[%clk 00:13:01]} {[%emt 00:01:22]} Qxa2
{[%clk 00:05:20]} {[%emt 00:01:40]} 23. Nc4 {[%clk 00:12:05]} {[%emt 00:01:00]}
h6 {[%clk 00:04:44]} {[%emt 00:00:39]} 24. Qd7 {[%clk 00:11:02]} {[%emt
00:01:06]} Rd8 {[%clk 00:04:26]} {[%emt 00:00:21]} 25. Qxb7 {[%clk 00:11:01]}
{[%emt 00:00:04]} Qb1+ {[%clk 00:04:25]} {[%emt 00:00:03]} 26. Kh2 {[%clk
00:10:56]} {[%emt 00:00:09]} Qxc2 {[%clk 00:04:24]} {[%emt 00:00:03]} 27. Ne5
{[%clk 00:10:23]} {[%emt 00:00:37]} Qc7 {[%emt 00:00:14]} 0-1

[Event "15. ročník Dobrovický rapid Tereos TTD a.s."]
[Site "Dobrovice, Czech Republic"]
[Date "2020.02.29"]
[Round "4.14"]
[White "Spirek Adam"]
[Black "Jirasek Jiri"]
[Result "1/2-1/2"]
[TimeControl "15m + 3s / tah"]
[WhiteElo "2015"]
[BlackElo "1917"]

1. e4 {[%clk 00:15:03]} {[%emt 00:00:02]} e5 {[%clk 00:15:05]} {[%emt
00:00:02]} 2. Nc3 {[%clk 00:15:05]} {[%emt 00:00:02]} Nf6 {[%clk 00:15:05]}
{[%emt 00:00:02]} 3. Bc4 {[%clk 00:15:06]} {[%emt 00:00:02]} Nxe4 {[%clk
00:14:47]} {[%emt 00:00:21]} 4. Qh5 {[%clk 00:15:05]} {[%emt 00:00:04]} Nd6
{[%clk 00:14:25]} {[%emt 00:00:24]} 5. Bb3 {[%clk 00:15:06]} {[%emt 00:00:02]}
Be7 {[%clk 00:13:43]} {[%emt 00:00:45]} 6. Qxe5 {[%clk 00:14:58]} {[%emt
00:00:11]} O-O {[%clk 00:13:43]} {[%emt 00:00:03]} 7. d4 {[%clk 00:14:42]}
{[%emt 00:00:19]} Bf6 {[%clk 00:12:54]} {[%emt 00:00:52]} 8. Qf4 {[%clk
00:14:40]} {[%emt 00:00:05]} Nc6 {[%clk 00:12:02]} {[%emt 00:00:54]} 9. Nge2
{[%clk 00:14:27]} {[%emt 00:00:16]} Na5 {[%clk 00:11:40]} {[%emt 00:00:25]} 10.
Bd5 {[%clk 00:14:09]} {[%emt 00:00:21]} Nac4 {[%clk 00:10:31]} {[%emt
00:01:12]} 11. b3 {[%clk 00:13:17]} {[%emt 00:00:55]} Nb6 {[%clk 00:10:30]}
{[%emt 00:00:04]} 12. Bf3 {[%clk 00:13:18]} {[%emt 00:00:03]} h6 {[%clk
00:09:31]} {[%emt 00:01:02]} 13. h4 {[%clk 00:13:01]} {[%emt 00:00:19]} Re8
{[%clk 00:08:39]} {[%emt 00:00:55]} 14. g4 {[%clk 00:12:23]} {[%emt 00:00:41]}
g5 {[%clk 00:07:38]} {[%emt 00:01:03]} 15. hxg5 {[%clk 00:11:32]} {[%emt
00:00:55]} Bxg5 {[%clk 00:07:35]} {[%emt 00:00:07]} 16. Qh2 {[%clk 00:10:55]}
{[%emt 00:00:40]} Re6 {[%clk 00:06:11]} {[%emt 00:01:26]} 17. Kd1 {[%clk
00:08:13]} {[%emt 00:02:46]} Qf6 {[%clk 00:04:47]} {[%emt 00:01:26]} 18. Bxg5
{[%clk 00:05:32]} {[%emt 00:02:44]} Qxg5 {[%clk 00:04:48]} {[%emt 00:00:03]} 19.
Qg3 {[%clk 00:04:47]} {[%emt 00:00:48]} a6 {[%clk 00:03:22]} {[%emt 00:01:29]}
20. Rh5 {[%clk 00:04:40]} {[%emt 00:00:10]} Qg7 {[%clk 00:03:14]} {[%emt
00:00:11]} 21. Kc1 {[%clk 00:04:03]} {[%emt 00:00:40]} Ne8 {[%clk 00:03:15]}
{[%emt 00:00:01]} 22. Kb2 {[%clk 00:03:15]} {[%emt 00:00:51]} Nf6 {[%clk
00:03:14]} {[%emt 00:00:04]} 23. Rf5 {[%clk 00:02:39]} {[%emt 00:00:40]} Nh7
{[%clk 00:02:20]} {[%emt 00:00:57]} 24. Nf4 {[%clk 00:02:26]} {[%emt 00:00:15]}
Rf6 {[%clk 00:02:22]} {[%emt 00:00:01]} 25. Nh5 {[%clk 00:02:25]} {[%emt
00:00:04]} Rxf5 {[%clk 00:02:24]} {[%emt 00:00:01]} 26. Nxg7 {[%clk 00:02:26]}
{[%emt 00:00:02]} 1/2-1/2

[ePGN "0.1;DGT LiveChess/2.2.5"]

[Event "15. ročník Dobrovický rapid Tereos TTD a.s."]
[Site "Dobrovice, Czech Republic"]
[Date "2020.02.29"]
[Round "5.1"]
[White "Plat Vojtech"]
[Black "Zwardon Vojtech"]
[Result "1-0"]
[TimeControl "15m + 3s / tah"]
[WhiteElo "2553"]
[BlackElo "2460"]

1. d4 {[%clk 00:15:04]} {[%emt 00:00:01]} Nf6 {[%clk 00:15:06]} 2. Nf3 {[%clk
00:15:06]} {[%emt 00:00:01]} e6 {[%clk 00:15:08]} 3. e3 {[%clk 00:15:08]} b6
{[%clk 00:15:09]} {[%emt 00:00:02]} 4. Nbd2 {[%clk 00:15:07]} {[%emt 00:00:04]}
Bb7 {[%clk 00:15:11]} 5. Bd3 {[%clk 00:15:08]} {[%emt 00:00:03]} g5 {[%clk
00:15:12]} 6. Nxg5 {[%clk 00:13:06]} {[%emt 00:02:08]} Bxg2 {[%clk 00:14:51]}
{[%emt 00:00:24]} 7. Rg1 {[%clk 00:13:08]} Bb7 {[%clk 00:14:24]} {[%emt
00:00:30]} 8. e4 {[%clk 00:11:52]} {[%emt 00:01:19]} Rg8 {[%clk 00:13:06]}
{[%emt 00:01:22]} 9. Rg3 {[%clk 00:11:44]} {[%emt 00:00:10]} h6 {[%clk
00:12:26]} {[%emt 00:00:43]} 10. Ngf3 {[%clk 00:11:39]} {[%emt 00:00:08]} Rxg3
{[%clk 00:11:41]} {[%emt 00:00:49]} 11. hxg3 {[%clk 00:11:40]} {[%emt
00:00:01]} d6 {[%clk 00:11:33]} {[%emt 00:00:10]} 12. c3 {[%clk 00:11:09]}
{[%emt 00:00:35]} Nc6 {[%clk 00:11:21]} {[%emt 00:00:16]} 13. a4 {[%clk
00:10:49]} {[%emt 00:00:23]} Qd7 {[%clk 00:11:13]} {[%emt 00:00:11]} 14. b4
{[%clk 00:10:43]} {[%emt 00:00:09]} a6 {[%clk 00:10:53]} {[%emt 00:00:22]} 15.
Bb2 {[%clk 00:10:34]} {[%emt 00:00:12]} Bg7 {[%clk 00:10:36]} {[%emt 00:00:20]}
16. Qe2 {[%clk 00:10:24]} {[%emt 00:00:13]} Ne7 {[%clk 00:09:23]} {[%emt
00:01:16]} 17. Nb3 {[%clk 00:09:33]} {[%emt 00:00:55]} h5 {[%clk 00:09:00]}
{[%emt 00:00:27]} 18. c4 {[%clk 00:08:34]} {[%emt 00:01:02]} Ng4 {[%clk
00:08:36]} {[%emt 00:00:26]} 19. a5 {[%clk 00:08:29]} {[%emt 00:00:08]} Ng6
{[%clk 00:08:13]} {[%emt 00:00:26]} 20. axb6 {[%clk 00:08:19]} {[%emt
00:00:12]} cxb6 {[%clk 00:08:15]} {[%emt 00:00:01]} 21. c5 {[%clk 00:07:42]}
{[%emt 00:00:41]} dxc5 {[%clk 00:07:52]} {[%emt 00:00:26]} 22. bxc5 {[%clk
00:07:28]} {[%emt 00:00:16]} b5 {[%clk 00:07:23]} {[%emt 00:00:31]} 23. Rc1
{[%clk 00:06:26]} {[%emt 00:01:06]} Kf8 {[%clk 00:07:19]} {[%emt 00:00:08]} 24.
Na5 {[%clk 00:04:49]} {[%emt 00:01:39]} Rc8 {[%clk 00:07:07]} {[%emt 00:00:14]}
25. Kf1 {[%clk 00:02:50]} {[%emt 00:02:03]} Ba8 {[%clk 00:07:05]} {[%emt
00:00:05]} 26. Kg2 {[%clk 00:02:13]} {[%emt 00:00:40]} Qc7 {[%clk 00:06:31]}
{[%emt 00:00:36]} 27. Nb3 {[%clk 00:02:04]} {[%emt 00:00:13]} h4 {[%clk
00:06:11]} {[%emt 00:00:23]} 28. c6 {[%clk 00:01:59]} {[%emt 00:00:07]} Bh6
{[%clk 00:05:25]} {[%emt 00:00:49]} 29. Rc5 {[%clk 00:01:25]} {[%emt 00:00:37]}
hxg3 {[%clk 00:03:43]} {[%emt 00:01:45]} 30. fxg3 {[%clk 00:01:28]} Ne3+ {[%clk
00:03:43]} {[%emt 00:00:03]} 31. Kh3 {[%clk 00:01:31]} Nf4+ {[%clk 00:03:02]}
{[%emt 00:00:44]} 32. gxf4 {[%clk 00:01:32]} {[%emt 00:00:01]} Qxf4 {[%clk
00:03:05]} 33. Nh2 {[%clk 00:01:30]} {[%emt 00:00:05]} Bxc6 {[%clk 00:02:37]}
{[%emt 00:00:31]} 34. Bc1 {[%clk 00:01:32]} {[%emt 00:00:01]} e5 {[%clk
00:02:39]} 35. Bxe3 {[%clk 00:01:30]} {[%emt 00:00:05]} Qxe3+ 36. Qxe3 {[%clk
00:01:32]} Bxe3 {[%clk 00:02:23]} {[%emt 00:00:01]} 37. Ng4 {[%clk 00:01:14]}
{[%emt 00:00:21]} Bxd4 {[%clk 00:02:01]} {[%emt 00:00:25]} 38. Nxd4 {[%clk
00:01:15]} {[%emt 00:00:02]} exd4 {[%clk 00:02:03]} {[%emt 00:00:01]} 39. Ne5
{[%clk 00:01:17]} Bb7 {[%clk 00:02:04]} {[%emt 00:00:02]} 40. Kg3 {[%clk
00:01:10]} {[%emt 00:00:11]} Ke7 {[%clk 00:02:01]} {[%emt 00:00:05]} 41. Rxc8
{[%clk 00:01:11]} {[%emt 00:00:02]} Bxc8 {[%clk 00:02:04]} 42. Kf4 {[%clk
00:01:03]} {[%emt 00:00:11]} Bb7 {[%clk 00:01:49]} {[%emt 00:00:18]} 43. Nf3
{[%clk 00:01:03]} {[%emt 00:00:03]} Kd6 {[%clk 00:01:51]} 44. Nxd4 {[%clk
00:01:03]} {[%emt 00:00:04]} Kc5 {[%clk 00:01:52]} {[%emt 00:00:02]} 45. Ke3
{[%clk 00:01:04]} Bc8 {[%clk 00:01:48]} {[%emt 00:00:06]} 46. Be2 {[%clk
00:01:00]} {[%emt 00:00:07]} Bd7 {[%clk 00:01:47]} {[%emt 00:00:04]} 47. Nb3+
{[%clk 00:00:28]} {[%emt 00:00:35]} Kb4 {[%clk 00:01:46]} {[%emt 00:00:04]} 48.
Nc1 {[%clk 00:00:30]} {[%emt 00:00:01]} a5 {[%clk 00:01:40]} {[%emt 00:00:09]}
49. Kd4 {[%clk 00:00:30]} {[%emt 00:00:03]} a4 {[%clk 00:01:27]} {[%emt
00:00:16]} 50. Nd3+ {[%clk 00:00:33]} Ka3 {[%clk 00:01:30]} 51. Kc3 {[%clk
00:00:34]} {[%emt 00:00:01]} Bc6 {[%clk 00:01:19]} {[%emt 00:00:09]} 52. e5
{[%clk 00:00:37]} Bd7 {[%clk 00:00:48]} {[%emt 00:00:35]} 53. Nb4 {[%clk
00:00:39]} Be6 {[%clk 00:00:31]} {[%emt 00:00:25]} 54. Bxb5 {[%clk 00:00:40]}
{[%emt 00:00:02]} Bf5 {[%clk 00:00:24]} {[%emt 00:00:10]} 55. Bc4 {[%clk
00:00:37]} {[%emt 00:00:05]} Bg6 {[%clk 00:00:20]} {[%emt 00:00:07]} 56. Bd5
{[%clk 00:00:39]} {[%emt 00:00:01]} f6 {[%clk 00:00:04]} {[%emt 00:00:20]} 57.
exf6 {[%clk 00:00:40]} {[%emt 00:00:02]} Bf7 {[%clk 00:00:05]} 58. Nc2# {[%clk
00:00:37]} {[%emt 00:00:02]} 1-0

[Event "15. ročník Dobrovický rapid Tereos TTD a.s."]
[Site "Dobrovice, Czech Republic"]
[Date "2020.02.29"]
[Round "5.2"]
[White "Kourousis Epaminondas"]
[Black "Velicka Petr"]
[Result "1-0"]
[TimeControl "15m + 3s / tah"]
[WhiteElo "2406"]
[BlackElo "2395"]

1. d4 {[%clk 00:15:03]} {[%emt 00:00:02]} d5 {[%clk 00:15:05]} {[%emt
00:00:01]} 2. Bf4 {[%clk 00:15:03]} {[%emt 00:00:03]} Nf6 {[%clk 00:15:05]}
{[%emt 00:00:03]} 3. Nc3 {[%clk 00:15:03]} {[%emt 00:00:02]} c6 {[%clk
00:15:01]} {[%emt 00:00:08]} 4. f3 {[%clk 00:15:03]} {[%emt 00:00:04]} Bf5
{[%clk 00:15:00]} {[%emt 00:00:04]} 5. g4 {[%clk 00:15:04]} {[%emt 00:00:02]}
Bg6 {[%clk 00:15:02]} 6. h4 {[%clk 00:15:07]} h5 {[%clk 00:15:03]} {[%emt
00:00:03]} 7. g5 {[%clk 00:15:08]} {[%emt 00:00:02]} Nfd7 {[%clk 00:14:48]}
{[%emt 00:00:17]} 8. e3 {[%clk 00:14:04]} {[%emt 00:01:08]} e6 {[%clk
00:14:34]} {[%emt 00:00:16]} 9. Bd3 {[%clk 00:14:05]} {[%emt 00:00:02]} Bxd3
{[%clk 00:14:34]} {[%emt 00:00:04]} 10. Qxd3 {[%clk 00:13:39]} {[%emt
00:00:29]} g6 {[%clk 00:14:36]} 11. Nge2 {[%clk 00:13:39]} {[%emt 00:00:03]} a6
{[%clk 00:14:33]} {[%emt 00:00:06]} 12. e4 {[%clk 00:13:29]} {[%emt 00:00:14]}
Be7 {[%clk 00:13:59]} {[%emt 00:00:36]} 13. O-O-O {[%clk 00:13:22]} {[%emt
00:00:10]} b5 {[%clk 00:14:00]} {[%emt 00:00:02]} 14. Kb1 {[%clk 00:13:01]}
{[%emt 00:00:24]} Qa5 {[%clk 00:13:57]} {[%emt 00:00:06]} 15. Nc1 {[%clk
00:12:57]} {[%emt 00:00:07]} b4 {[%clk 00:13:38]} {[%emt 00:00:23]} 16. Nb3
{[%clk 00:12:49]} {[%emt 00:00:10]} Qb6 {[%clk 00:13:40]} 17. Na4 {[%clk
00:11:40]} {[%emt 00:01:13]} Qb5 {[%clk 00:13:39]} {[%emt 00:00:04]} 18. Nac5
{[%clk 00:10:45]} {[%emt 00:00:59]} Nxc5 {[%clk 00:13:34]} {[%emt 00:00:08]} 19.
Nxc5 {[%clk 00:08:43]} {[%emt 00:02:06]} Bxc5 {[%clk 00:13:33]} {[%emt
00:00:04]} 20. dxc5 {[%clk 00:08:45]} Qxd3 {[%clk 00:13:01]} {[%emt 00:00:34]}
21. Rxd3 {[%clk 00:08:25]} {[%emt 00:00:24]} a5 {[%clk 00:12:52]} {[%emt
00:00:12]} 22. Bd6 {[%clk 00:07:59]} {[%emt 00:00:29]} Kd7 {[%clk 00:12:24]}
{[%emt 00:00:31]} 23. Kc1 {[%clk 00:07:17]} {[%emt 00:00:46]} Na6 {[%clk
00:12:18]} {[%emt 00:00:08]} 24. Kd2 {[%clk 00:07:17]} {[%emt 00:00:03]} Nc7
{[%clk 00:12:19]} {[%emt 00:00:02]} 25. Ra1 {[%clk 00:05:28]} {[%emt 00:01:52]}
Nb5 {[%clk 00:12:11]} {[%emt 00:00:10]} 26. Be5 {[%clk 00:05:29]} {[%emt
00:00:02]} Rhd8 {[%clk 00:12:01]} {[%emt 00:00:12]} 27. a3 {[%clk 00:04:56]}
{[%emt 00:00:36]} bxa3 {[%clk 00:11:36]} {[%emt 00:00:28]} 28. bxa3 {[%clk
00:04:31]} {[%emt 00:00:29]} a4 {[%clk 00:05:50]} {[%emt 00:05:48]} 29. c4
{[%clk 00:03:22]} {[%emt 00:01:12]} Nc7 {[%clk 00:05:50]} {[%emt 00:00:02]} 30.
Rb1 {[%clk 00:03:24]} {[%emt 00:00:01]} Kc8 {[%clk 00:03:46]} {[%emt 00:02:07]}
31. Rb6 {[%clk 00:01:30]} {[%emt 00:01:57]} dxc4 {[%clk 00:03:44]} {[%emt
00:00:05]} 32. Rd6 {[%clk 00:00:57]} {[%emt 00:00:36]} Rxd6+ {[%clk 00:03:15]}
{[%emt 00:00:31]} 33. cxd6 {[%clk 00:00:59]} {[%emt 00:00:01]} Nb5 {[%clk
00:03:02]} {[%emt 00:00:17]} 34. Rxc6+ {[%clk 00:00:49]} {[%emt 00:00:13]} Kb7
{[%clk 00:02:08]} {[%emt 00:00:56]} 35. Rxc4 {[%clk 00:00:45]} {[%emt
00:00:08]} Kb6 {[%clk 00:02:09]} {[%emt 00:00:01]} 36. Bd4+ {[%clk 00:00:19]}
{[%emt 00:00:29]} Nxd4 {[%clk 00:01:56]} {[%emt 00:00:16]} 37. Rxd4 {[%clk
00:00:22]} e5 {[%clk 00:01:56]} {[%emt 00:00:04]} 38. Rd5 {[%clk 00:00:22]}
{[%emt 00:00:03]} Kc6 {[%clk 00:01:51]} {[%emt 00:00:08]} 39. d7 {[%clk
00:00:20]} {[%emt 00:00:05]} Rd8 {[%clk 00:01:54]} 40. Kc3 {[%clk 00:00:21]}
{[%emt 00:00:02]} Kc7 {[%clk 00:01:50]} {[%emt 00:00:07]} 41. Kc4 {[%clk
00:00:11]} {[%emt 00:00:12]} Kc6 {[%clk 00:01:52]} {[%emt 00:00:01]} 42. Rd3
{[%clk 00:00:12]} {[%emt 00:00:01]} Kb7 {[%clk 00:01:48]} {[%emt 00:00:08]} 43.
Kb5 {[%clk 00:00:13]} {[%emt 00:00:02]} Kc7 {[%clk 00:01:48]} {[%emt 00:00:03]}
44. Kc5 {[%clk 00:00:13]} {[%emt 00:00:03]} Kc6+ {[%emt 00:00:34]} 1-0